Cogmind - Beta 15 @@@ ROGUE MODE // 2025.09.14 @ 18:56:54 Player: cottonman132 Result: Destroyed by OA-LRH(R) with Subdweller Machine Gun Performance ------------- Evolutions (0) 0 Regions Visited (3) 600 Robots Destroyed (17) 85 Value Destroyed (551) 551 Prototype IDs (0) 0 Alien Tech Used (0) 0 Bonus (-32) -32 TOTAL SCORE: 1204 Bonus ------- Friendly Fire -32 Cogmind --------- Core Integrity 0/250 Matter 118/300 Energy 125/125 System Corruption 0% Temperature Cool (0) Movement Walking (120) Location -10/Subcaves Parts ------- > --- POWER (1) -------- Light Ion Engine > --- PROPULSION (2) --- Aluminum Leg Aluminum Leg > --- UTILITY (2) ------ Small Storage Unit Signal Interpreter > --- WEAPON (2) ------- Assault Cannon > --- INVENTORY (8) ---- Light Nuclear Core Aluminum Leg Machine Analyzer Heavy Armor Plating Hacking Suite Peak State ------------ > --- POWER ------------ Light Ion Engine > --- PROPULSION ------- Aluminum Leg Carbon-fiber Leg > --- UTILITY ---------- Small Storage Unit Signal Interpreter > --- WEAPON ----------- Assault Rifle Assault Cannon > --- INVENTORY -------- Light Nuclear Core Aluminum Leg Aluminum Leg Machine Analyzer Machine Analyzer Heavy Armor Plating Hacking Suite [Rating: 13] Favorites ----------- Power Light Ion Engine Engine Light Ion Engine Propulsion Aluminum Leg Leg Aluminum Leg Wheel Wheel Utility Small Storage Unit Storage Small Storage Unit Processor Signal Interpreter Weapon Light Assault Rifle Ballistic Gun Light Assault Rifle Ballistic Cannon Assault Cannon Launcher Grenade Launcher Build | -11 -10 -10 -10 ------- Run | Yrd Mat Min Sub Slots Evolved . | . . . . Power . | . . . . Propulsion . | . . . . Utility . | . . . . Weapon . | . . . . Parts Attached 17 | 4 7 3 3 Power 2 | 1 . . 1 Engine 2 | 1 . . 1 Core . | . . . . Reactor . | . . . . Propulsion 8 | 2 3 1 2 Treads . | . . . . Leg 6 | 2 1 1 2 Wheel 2 | . 2 . . Hover . | . . . . Flight . | . . . . Utility 2 | 1 1 . . Device . | . . . . Storage 1 | 1 . . . Processor 1 | . 1 . . Hackware . | . . . . Protection . | . . . . Artifact . | . . . . Weapon 5 | . 3 2 . Energy Gun . | . . . . Energy Cannon . | . . . . Ballistic Gun 3 | . 3 . . Ballistic Cannon 1 | . . 1 . Launcher 1 | . . 1 . Special Weapon . | . . . . Impact Weapon . | . . . . Slashing Weapon . | . . . . Piercing Weapon . | . . . . Special Melee Weapon . | . . . . Unidentified Prototypes . | . . . . Parts Lost 5 | . 1 1 3 Power 1 | . . . 1 Propulsion 2 | . 1 . 1 Utility . | . . . . Weapon 2 | . . 1 1 Highest Loss Streak 2 | . 1 1 2 To Critical Strikes . | . . . . Average Backups 6 | 3 5 7 5 Power 1 | 1 1 2 1 Propulsion 2 | 2 2 2 1 Utility 1 | . . . 3 Weapon 1 | . 1 1 . Tool/Special . | . . . . Unused Backups 6 | . . 1 5 Power 2 | . . 1 1 Propulsion . | . . . . Utility 4 | . . . 4 Weapon . | . . . . Tool/Special . | . . . . Average Slot Usage (%) 93 | . 83 97 96 Engine 14 | . 14 14 14 Leg 24 | . 17 28 28 Wheel 2 | . 9 . . Storage 14 | . 14 14 14 Processor 11 | . 4 14 14 Ballistic Gun 19 | . 23 21 10 Ballistic Cannon 5 | . . 3 14 Peak Build Rating 13 | 4 8 12 13 Average Rating 8 | 2 6 8 11 On Entrance 6 | . 4 8 12 Naked Turns . | . . . . Heaviest Build 15 | 8 11 15 15 Greatest Support 25 | 20 20 25 25 Greatest Overweight (x) 1 | 1 . . . Average Overweight (x) . | . . . . Largest Inventory Capacity 8 | 8 8 8 8 Average Capacity 7 | 7 8 8 8 Most Carried 8 | 6 8 8 8 Average Carried 6 | 3 5 7 6 Final Capacity 8 | 8 8 8 8 Final Carried 8 | 3 8 8 6 Class Distribution -------------------- 100% | Mutant Dominant Class ---------------- Mutant | -10/Materials Mutant | -10/Mines Mutant | -10/Subcaves Resources | -11 -10 -10 -10 ----------- Run | Yrd Mat Min Sub Matter Collected 562 | 230 179 . 153 Remotely . | . . . . Salvage Created 556 | . 433 . 123 Parts 40 | . 30 . 10 Haulers Intercepted . | . . . . Recyclers Shooed . | . . . . Parts Field Recycled . | . . . . Retrieved Matter . | . . . . Parts Self-Destructed 10 | . . . 10 Prevented . | . . . . Kills | -11 -10 -10 -10 ------- Run | Yrd Mat Min Sub Combat Hostiles Destroyed 16 | . 11 . 5 Guns 12 | . 11 . 1 Cannons 4 | . . . 4 Classes Destroyed 4 | . 3 . 1 Recycler 1 | . 1 . . Swarmer 3 | . 3 . . Grunt 9 | . 8 . 1 Subdweller 4 | . . . 4 Best Kill Streak 5 | . 5 . 2 Combat Bots Only 4 | . 4 . 2 Max Kills in Single Turn 1 | . 1 . 1 Gunslinging . | . . . . Exploded . | . . . . Melee . | . . . . Uniques/NPCs Destroyed . | . . . . Combat | -11 -10 -10 -10 -------- Run | Yrd Mat Min Sub Hostile Shots Fired 99 | . 56 . 43 Missed 31 | . 17 . 14 Hits 68 | . 39 . 29 Projectile 68 | . 39 . 29 Critical Strikes 2 | . 1 . 1 Damage Taken 1109 | . 463 27 619 Core 270 | . 148 . 122 Absorbed by Shields . | . . . . Core Remaining (%) 100 | 100 . . . Volleys Fired 100 | . 55 7 38 Largest 2 | . 2 2 2 Hottest 57 | . 40 57 57 Shots Fired 177 | . 110 8 59 Gun 138 | . 110 7 21 Cannon 39 | . . 1 38 Launcher . | . . . . Special . | . . . . Kinetic 177 | . 110 8 59 Thermal . | . . . . Explosive . | . . . . Electromagnetic . | . . . . Robot Hit Streak 10 | . 10 1 9 Robot Miss Streak 3 | . 3 2 3 Penetration Max . | . . . . Secondary Targets 1 | . 1 . . Max Gunslinging Chain 1 | . 1 . . Shots Hit Robots 107 | . 75 3 29 Core Hits 37 | . 29 . 8 Critical Kills . | . . . . Critical Parts Destroyed . | . . . . Critical Strikes 1 | . . . 1 Blast 1 | . . . 1 Melee Attacks . | . . . . Impact . | . . . . Slashing . | . . . . Piercing . | . . . . Sneak Attacks . | . . . . Combat Hostiles . | . . . . Follow-up Attacks . | . . . . Damage Inflicted 1278 | 5 607 32 634 Guns 731 | . 607 32 92 Cannons 542 | . . . 542 Explosions . | . . . . Melee . | . . . . Ramming 5 | 5 . . . Kinetic 1273 | . 607 32 634 Thermal . | . . . . Explosive . | . . . . Electromagnetic . | . . . . Impact . | . . . . Slashing . | . . . . Piercing . | . . . . Highest Corruption . | . . . . Average Corruption . | . . . . Corruption Purged . | . . . . Corruption Blocked . | . . . . Overload Shots . | . . . . Overflow Damage . | . . . . Projectiles . | . . . . Explosions . | . . . . Melee . | . . . . Knockbacks 2 | . . . 2 Impact . | . . . . Kinetic 2 | . . . 2 Secondary . | . . . . Self-Inflicted Damage . | . . . . Shots . | . . . . Rammed . | . . . . Targets Rammed 3 | 3 . . . Kicked 3 | 3 . . . Crushed . | . . . . Highest Temperature 34 | . 34 . . Average Temperature 9 | . 9 . . Received Heat Transfer 294 | . 240 . 54 Siege Activations . | . . . . Martial Activations . | . . . . Shielding Activations . | . . . . Robots Disrupted . | . . . . Combat Hostiles . | . . . . Robots Corrupted . | . . . . Combat Hostiles . | . . . . Parts Fried . | . . . . Impact Corruptions . | . . . . Robots Melted . | . . . . Combat Hostiles . | . . . . Parts Melted . | . . . . Heat Transferred . | . . . . Parts Sabotaged . | . . . . Parts Stolen . | . . . . Parts Stripped . | . . . . Power Chain Reactions . | . . . . Alert | -11 -10 -10 -10 ------- Run | Yrd Mat Min Sub Maximum Alert Level . | . . . . Low Security (%) 100 | 100 100 100 . Level 1 . | . . . . Level 2 . | . . . . Level 3 . | . . . . Level 4 . | . . . . Level 5 . | . . . . High Security . | . . . . Max Security . | . . . . Peak Influence 170 | . 170 58 . Initial 58 | . . 58 . Average 32 | . 80 6 . Influence Increases 382 | . 320 32 30 Destroy 0b10 Robot/C 240 | . 220 . 20 Destroy 0b10 Robot/NC 5 | . 5 . . Destroy Leader 60 | . 50 . 10 Disable Machine 15 | . . 15 . Destroy Structure 17 | . . 17 . Lose Combat Pursuer 45 | . 45 . . Influence Decreases 382 | . 170 158 54 Entered New Map 105 | . . 92 13 Time Decay 267 | . 160 66 41 Lost Part 10 | . 10 . . Squads Dispatched 4 | . 4 . . Investigation 1 | . 1 . . Extermination . | . . . . Reinforcement 3 | . 3 . . Assault . | . . . . Garrison . | . . . . Intercept . | . . . . Searches Triggered . | . . . . Construction Impeded . | . . . . Haulers Reinforced . | . . . . Active Scanning Responses . | . . . . Cargo Convoy Interrupts . | . . . . Stealth | -11 -10 -10 -10 --------- Run | Yrd Mat Min Sub Distress Signals . | . . . . Communications Jammed . | . . . . Distress Signals . | . . . . Times Spotted 27 | . 20 . 7 Peak Tracking Total 5 | . 5 . 2 Tactical Retreats 2 | . 2 . . Traps | -11 -10 -10 -10 ------- Run | Yrd Mat Min Sub Traps Triggered 2 | . 1 . 1 Indirectly . | . . . . Trap Hack Attempts . | . . . . Triggered . | . . . . Disarmed . | . . . . Reprogrammed . | . . . . Reused . | . . . . Traps Extracted . | . . . . Installed . | . . . . Triggered . | . . . . Machines | -11 -10 -10 -10 ---------- Run | Yrd Mat Min Sub Machines Disabled 1 | . . 1 . Max in Single Turn 1 | . . 1 . Machines Repaired . | . . . . Machines Dismantled . | . . . . Machines Sabotaged . | . . . . Overloaded Fab Kills . | . . . . Hacking | -11 -10 -10 -10 --------- Run | Yrd Mat Min Sub Machines Accessed 3 | . 1 1 1 Terminals 1 | . 1 . . Fabricators . | . . . . Repair Stations . | . . . . Recycling Units . | . . . . Scanalyzers . | . . . . Garrison Access . | . . . . Total Hacks 6 | . 2 1 3 Successful 4 | . . 1 3 Failed 2 | . 2 . . Catastrophic 1 | . 1 . . Database Lockouts . | . . . . Manual . | . . . . Terminals 2 | . 2 . . Fabricators . | . . . . Repair Stations . | . . . . Recycling Units . | . . . . Scanalyzers . | . . . . Garrison Access . | . . . . Terminal Hacks 4 | . . 1 3 Record 3 | . . . 3 Open Door 1 | . . 1 . Fabricator Hacks . | . . . . Repair Station Hacks . | . . . . Recycling Unit Hacks . | . . . . Scanalyzer . | . . . . Garrison Access Hacks . | . . . . Unauthorized Hacks . | . . . . Terminals . | . . . . Fabricators . | . . . . Repair Stations . | . . . . Recycling Units . | . . . . Scanalyzers . | . . . . Garrison Access . | . . . . Data Cores Recovered . | . . . . Used . | . . . . Hacking Detections 1 | . 1 . . Full Trace Events 1 | . 1 . . Feedback Events . | . . . . Feedback Blocked . | . . . . Robot Schematics Acquired . | . . . . Robots Built . | . . . . Authchips . | . . . . Time . | . . . . Total Robot Build Rating . | . . . . Part Schematics Acquired . | . . . . Parts Built . | . . . . Authchips . | . . . . Time . | . . . . Total Part Build Rating . | . . . . Parts Repaired . | . . . . Time . | . . . . Parts Recycled . | . . . . Recycled Matter . | . . . . Retrieved Matter . | . . . . Retrieved Components . | . . . . Parts Scanalyzed . | . . . . Part Schematics Acquired . | . . . . Parts Damaged . | . . . . Bothacking | -11 -10 -10 -10 ------------ Run | Yrd Mat Min Sub Used RIF Installer . | . . . . Robots Hacked . | . . . . Non-combat . | . . . . Combat . | . . . . Robot Hacks Applied . | . . . . Relay Couplers Released . | . . . . Fabnet Peak Effective % . | . . . . Robots Rewired . | . . . . Allies Hacked . | . . . . Hacks Repelled . | . . . . Allies | -11 -10 -10 -10 -------- Run | Yrd Mat Min Sub Total Allies . | . . . . Largest Group . | . . . . Highest-Rated Group . | . . . . Highest-Rated Ally . | . . . . Total Orders . | . . . . Ally Attacks . | . . . . Total Damage . | . . . . Kills . | . . . . Allies Corrupted . | . . . . Allies Melted . | . . . . Intel | -11 -10 -10 -10 ------- Run | Yrd Mat Min Sub Active Infowar (turns) . | . . . . Robot Analysis Total . | . . . . Derelict Logs Recovered 1 | . . 1 . Drone Launches . | . . . . Drone Recoveries . | . . . . Exploration | -11 -10 -10 -10 ------------- Run | Yrd Mat Min Sub Turns Passed 1388 | 70 388 631 299 Spaces Moved 909 | 55 199 492 163 Core 19 | 19 . . . Treads . | . . . . Legs 817 | 36 126 492 163 Wheels 73 | . 73 . . Hover . | . . . . Flight . | . . . . Fastest Speed 50 | 50 80 120 120 Average Speed 115 | 101 105 120 120 Slowest Speed 120 | 120 120 120 120 Overloaded Moves . | . . . . Propulsion Burnouts . | . . . . Robots Hopped . | . . . . Potential Cave-ins . | . . . . Cave-ins Triggered . | . . . . Exploration Rate (%) 28 | 5 42 50 18 Regions Visited 3 Branch Regions 2 Pre-discovered Areas 1 | . . . 1 Known Exits Taken 2 | . 1 1 . Unknown Exits Taken 1 | 1 . . . Scrap Searched . | . . . . Spaces Dug . | . . . . Terrain Destroyed 18 | . . 17 1 Melee . | . . . . Projectile 1 | . . . 1 AOE 17 | . . 17 . Terrain Rammed . | . . . . Walls Destroyed . | . . . . Machines Disabled . | . . . . Actions | -11 -10 -10 -10 --------- Run | Yrd Mat Min Sub Total 1088 | 68 287 527 206 Wait 32 | . 16 16 . Move 906 | 54 198 491 163 Hop . | . . . . Pick Up 20 | 7 9 3 1 Fast Attach 2 | . 1 1 . Attach 11 | 4 3 2 2 Detach . | . . . . Swap 7 | . 4 2 1 Drop 7 | . 1 5 1 Fire 100 | . 55 7 38 Melee . | . . . . Ram . | . . . . Kick 3 | 3 . . . Crush . | . . . . Escape Stasis . | . . . . Rewire . | . . . . Trap . | . . . . Miscellaneous . | . . . . Route ------- -11/Scrapyard -10/Materials (discovered 2 exits: *Mat / *Min) -10/Mines -10/Subcaves History --------- Turn | Location | Event 9 | -11/Scrapyard | Discovered new exit (range 16) 71 | -11/Scrapyard | Entered Materials 244 | -10/Materials | Discovered new exit (range 15) 316 | -10/Materials | Build established: Mutant 348 | -10/Materials | Identified exit to Materials 411 | -10/Materials | Core integrity fell below 50% 414 | -10/Materials | Discovered new exit (range 13) 458 | -10/Materials | Identified exit to Mines 459 | -10/Materials | Entered Mines 555 | -10/Mines | Discovered new exit (range 6) 560 | -10/Mines | Identified exit to Subcaves 751 | -10/Mines | Learned Materials stockpile data 792 | -10/Mines | Met a Derelict who couldn't figure out how to use a Trap Extractor 1090 | -10/Mines | Entered Subcaves 1091 | -10/Subcaves | Approached by a straggling Scientist 1111 | -10/Subcaves | Visited Clippyterm 1114 | -10/Subcaves | Learned location of Section 7 (-2) 1300 | -10/Subcaves | A swath of the cavern ceiling suddenly collapsed 1316 | -10/Subcaves | Core integrity fell below 20% 1389 | -10/Subcaves | Destroyed by OA-LRH(R) with Subdweller Machine Gun Last Messages --------------- 01218_ Acquired 5 matter. 01221_ Subatomizers dissect the Sub. Power Source. A swath of the cavern ceiling suddenly collapses. 01312_ Assault Rifle destroyed. 01316_ Carbon-fiber Leg destroyed. 01317_ WB-T9F(R) destroyed. 01327_ 2Q-PG4(R) affixes Scrap Shield Fragment to Scrap Shield. 01333_ 2Q-PG4(R) Sub. Power Source blasted off. 01338_ 2Q-PG4(R) affixes Scrap Shield Fragment to Scrap Shield. 01341_ 2Q-PG4(R) destroyed. 01350_ Acquired 35 matter. 01353_ Acquired 7 matter. 01354_ Acquired 2 matter. 01364_ Acquired 1 matter. 01367_ Acquired 7 matter. 01369_ Acquired 2 matter. Map ----- +----------------------------------------------------+ | ?????????????????????????????????????????????????? | | ?????????????????????????????????????????????????? | | ?????????????????????????????????????????????????? | | ?????????????????????????????????????????????????? | | ?????????????????????????????????????????????????? | | ?????????????????????????????????????????????????? | | ?????????????????????????????????????????????????? | | ?????????????????????????????????????????????????? | | ?????????????????????????????????????????????????? | | ?????????????????????????????????????????????????? | | ?????????????????????????????????????????????????? | | ?????????????????????????????????????????????????? | | ??????????????????????????#??????????????????????? | | ?????????????????????????? #?????????????????????? | | ?????????????????????????? ####?????????????????? | | ???????????????????#####??? #?????????????????? | | ?????????#???????### ##?? #?????????????????? | | ????????# #??????# #### #??????????????????? | | ????????# #???### ## ##?????????????????? | | ????????# #?## ?# #?????????????????? | | ?????? ## ## ?# ##?????##??????????? | | ??????? ?## #??? " "????????? | | ????????? #?# # ## R" """????????? | | ??????????? ### R"" "?????????? | | ????????????# ## =& # " ""????????? | | ?????????????# ## ! & @ ### # # ##""????????? | | ??????????????# &* ##??##?#??#???????????? | | ??????#???????# ## #????????????????????? | | ?????## ??????## ### #????????????????????? | | ???# ??????## ### ##????????????????????? | | ??# ###?### ##?????????????????????? | | ### ### ## # #??????????????????????? | | ##"# ## ### # #??????????????????????? | | "#"" ##??## ###?????????????????????? | | ??" #" ###?#??# # #?????????????????????? | | ??#""### ### ### #?????????????????????? | | ###????## #?????????????????????? | | ""##????## ## # #?????????????????????? | | """##????### #?## #?????????????????????? | | """#???##### ### #?????????????????????? | | " ""#??## ##### #?????????????????????? | | " ""#### ##?## #????????????????????? | | "" ## #??## ### #????????????????? | | # "" ##?## ##??? ???????????????? | | ## "" #?# ###???? ???????????????? | | ?# ### ##???? ????????????????? | | ?## ## #?????? ????????????????? | | ??# # #?????????????????????????? | | ??# #### #?????????????????????????? | | ??#### #??# ####??????????????????????? | +----------------------------------------------------+ Best States ------------- Heat Dissipation 25 Energy Generation 10 Energy Capacity 125 Matter Stores 300 Matter Capacity 300 Sight Range 16 Terrain Scan Density 10 Evasion (%) 55 Item Schematics ----------------- None Robot Schematics ------------------ None Fabricated ------------ Nothing Repaired ---------- Nothing Alien Tech Used ----------------- None Achievements -------------- None Challenges ------------ None Game ------ Seed HeavyHugeSword Manual? 0 Play Time 00:12:57 Cumulative 8.8 hours Start 2025.09.14 @ 18:46:32 End 2025.09.14 @ 18:56:54 Sessions 1 Manual Loads 0 Difficulty Rogue Special Mode None Game No. 25 Rogue 25 Adventurer 0 Explorer 0 Win Type - Total 0 Types 0/0/0/0/0/0/0/0/0/0 Lore% 19 Gallery% 10 Achievement% 15 Wizard Run 0 Options --------- Layout 2 ASCII 0 Keyboard 0 Movement Mouse Keybinds 0 Fullscreen 1 Font 24/Smallcaps Map View 50x44 Zoom Use 0% Tactical HUD 1 Map Filters NONE Filters NONE Steam 1 RUN: dfc7c044-f20f-4c17-a871-08450c915210